Workbook

Sheet PRECIO DE VISADO
B2: Descripción identificativa | H2: EXP
A4: =HYPERLINK("#"&CELL("direccion",B5)&":"&CELL("direccion",F16),"≡") -> ≡ | B4: Uso | C4: Tipología (T) | D4: Variante (V) | E4: Sup (m²) | F4: Parcial | G4: T | H4: V | I4: Vref | J4: slug
G5: =IFERROR(_xlfn.XLOOKUP(Tabla1[[#This Row],[Tipología (T)]],INDIRECT(Tabla1[[#This Row],[slug]]&"a"),INDIRECT(Tabla1[[#This Row],[slug]]&"b"),""),"") ->  | H5: =IFERROR(_xlfn.XLOOKUP(Tabla1[[#This Row],[Variante (V)]],INDIRECT(Tabla1[[#This Row],[slug]]&"c"),INDIRECT(Tabla1[[#This Row],[slug]]&"d"),""),"") ->  | I5: =IFERROR(Tabla1[[#This Row],[Sup (m²)]]*Tabla1[[#This Row],[T]]*IF(Tabla1[[#This Row],[V]]="",1,Tabla1[[#This Row],[V]])*IF(Tabla1[[#This Row],[Parcial]]="",1,Tabla1[[#This Row],[Parcial]]),"") ->  | J5: =LOWER(SUBSTITUTE(SUBSTITUTE(SUBSTITUTE(SUBSTITUTE(SUBSTITUTE(SUBSTITUTE(SUBSTITUTE(Tabla1[[#This Row],[Uso]],"Residencial","")," ",""),"á","a"),"é","e"),"í","i"),"ó","o"),"ú","u"))&"_" -> _
G6: =IFERROR(_xlfn.XLOOKUP(Tabla1[[#This Row],[Tipología (T)]],INDIRECT(Tabla1[[#This Row],[slug]]&"a"),INDIRECT(Tabla1[[#This Row],[slug]]&"b"),""),"") ->  | H6: =IFERROR(_xlfn.XLOOKUP(Tabla1[[#This Row],[Variante (V)]],INDIRECT(Tabla1[[#This Row],[slug]]&"c"),INDIRECT(Tabla1[[#This Row],[slug]]&"d"),""),"") ->  | I6: =IFERROR(Tabla1[[#This Row],[Sup (m²)]]*Tabla1[[#This Row],[T]]*IF(Tabla1[[#This Row],[V]]="",1,Tabla1[[#This Row],[V]])*IF(Tabla1[[#This Row],[Parcial]]="",1,Tabla1[[#This Row],[Parcial]]),"") ->  | J6: =LOWER(SUBSTITUTE(SUBSTITUTE(SUBSTITUTE(SUBSTITUTE(SUBSTITUTE(SUBSTITUTE(SUBSTITUTE(Tabla1[[#This Row],[Uso]],"Residencial","")," ",""),"á","a"),"é","e"),"í","i"),"ó","o"),"ú","u"))&"_" -> _
G7: =IFERROR(_xlfn.XLOOKUP(Tabla1[[#This Row],[Tipología (T)]],INDIRECT(Tabla1[[#This Row],[slug]]&"a"),INDIRECT(Tabla1[[#This Row],[slug]]&"b"),""),"") ->  | H7: =IFERROR(_xlfn.XLOOKUP(Tabla1[[#This Row],[Variante (V)]],INDIRECT(Tabla1[[#This Row],[slug]]&"c"),INDIRECT(Tabla1[[#This Row],[slug]]&"d"),""),"") ->  | I7: =IFERROR(Tabla1[[#This Row],[Sup (m²)]]*Tabla1[[#This Row],[T]]*IF(Tabla1[[#This Row],[V]]="",1,Tabla1[[#This Row],[V]])*IF(Tabla1[[#This Row],[Parcial]]="",1,Tabla1[[#This Row],[Parcial]]),"") ->  | J7: =LOWER(SUBSTITUTE(SUBSTITUTE(SUBSTITUTE(SUBSTITUTE(SUBSTITUTE(SUBSTITUTE(SUBSTITUTE(Tabla1[[#This Row],[Uso]],"Residencial","")," ",""),"á","a"),"é","e"),"í","i"),"ó","o"),"ú","u"))&"_" -> _
G8: =IFERROR(_xlfn.XLOOKUP(Tabla1[[#This Row],[Tipología (T)]],INDIRECT(Tabla1[[#This Row],[slug]]&"a"),INDIRECT(Tabla1[[#This Row],[slug]]&"b"),""),"") ->  | H8: =IFERROR(_xlfn.XLOOKUP(Tabla1[[#This Row],[Variante (V)]],INDIRECT(Tabla1[[#This Row],[slug]]&"c"),INDIRECT(Tabla1[[#This Row],[slug]]&"d"),""),"") ->  | I8: =IFERROR(Tabla1[[#This Row],[Sup (m²)]]*Tabla1[[#This Row],[T]]*IF(Tabla1[[#This Row],[V]]="",1,Tabla1[[#This Row],[V]])*IF(Tabla1[[#This Row],[Parcial]]="",1,Tabla1[[#This Row],[Parcial]]),"") ->  | J8: =LOWER(SUBSTITUTE(SUBSTITUTE(SUBSTITUTE(SUBSTITUTE(SUBSTITUTE(SUBSTITUTE(SUBSTITUTE(Tabla1[[#This Row],[Uso]],"Residencial","")," ",""),"á","a"),"é","e"),"í","i"),"ó","o"),"ú","u"))&"_" -> _
G9: =IFERROR(_xlfn.XLOOKUP(Tabla1[[#This Row],[Tipología (T)]],INDIRECT(Tabla1[[#This Row],[slug]]&"a"),INDIRECT(Tabla1[[#This Row],[slug]]&"b"),""),"") ->  | H9: =IFERROR(_xlfn.XLOOKUP(Tabla1[[#This Row],[Variante (V)]],INDIRECT(Tabla1[[#This Row],[slug]]&"c"),INDIRECT(Tabla1[[#This Row],[slug]]&"d"),""),"") ->  | I9: =IFERROR(Tabla1[[#This Row],[Sup (m²)]]*Tabla1[[#This Row],[T]]*IF(Tabla1[[#This Row],[V]]="",1,Tabla1[[#This Row],[V]])*IF(Tabla1[[#This Row],[Parcial]]="",1,Tabla1[[#This Row],[Parcial]]),"") ->  | J9: =LOWER(SUBSTITUTE(SUBSTITUTE(SUBSTITUTE(SUBSTITUTE(SUBSTITUTE(SUBSTITUTE(SUBSTITUTE(Tabla1[[#This Row],[Uso]],"Residencial","")," ",""),"á","a"),"é","e"),"í","i"),"ó","o"),"ú","u"))&"_" -> _
G10: =IFERROR(_xlfn.XLOOKUP(Tabla1[[#This Row],[Tipología (T)]],INDIRECT(Tabla1[[#This Row],[slug]]&"a"),INDIRECT(Tabla1[[#This Row],[slug]]&"b"),""),"") ->  | H10: =IFERROR(_xlfn.XLOOKUP(Tabla1[[#This Row],[Variante (V)]],INDIRECT(Tabla1[[#This Row],[slug]]&"c"),INDIRECT(Tabla1[[#This Row],[slug]]&"d"),""),"") ->  | I10: =IFERROR(Tabla1[[#This Row],[Sup (m²)]]*Tabla1[[#This Row],[T]]*IF(Tabla1[[#This Row],[V]]="",1,Tabla1[[#This Row],[V]])*IF(Tabla1[[#This Row],[Parcial]]="",1,Tabla1[[#This Row],[Parcial]]),"") ->  | J10: =LOWER(SUBSTITUTE(SUBSTITUTE(SUBSTITUTE(SUBSTITUTE(SUBSTITUTE(SUBSTITUTE(SUBSTITUTE(Tabla1[[#This Row],[Uso]],"Residencial","")," ",""),"á","a"),"é","e"),"í","i"),"ó","o"),"ú","u"))&"_" -> _
G11: =IFERROR(_xlfn.XLOOKUP(Tabla1[[#This Row],[Tipología (T)]],INDIRECT(Tabla1[[#This Row],[slug]]&"a"),INDIRECT(Tabla1[[#This Row],[slug]]&"b"),""),"") ->  | H11: =IFERROR(_xlfn.XLOOKUP(Tabla1[[#This Row],[Variante (V)]],INDIRECT(Tabla1[[#This Row],[slug]]&"c"),INDIRECT(Tabla1[[#This Row],[slug]]&"d"),""),"") ->  | I11: =IFERROR(Tabla1[[#This Row],[Sup (m²)]]*Tabla1[[#This Row],[T]]*IF(Tabla1[[#This Row],[V]]="",1,Tabla1[[#This Row],[V]])*IF(Tabla1[[#This Row],[Parcial]]="",1,Tabla1[[#This Row],[Parcial]]),"") ->  | J11: =LOWER(SUBSTITUTE(SUBSTITUTE(SUBSTITUTE(SUBSTITUTE(SUBSTITUTE(SUBSTITUTE(SUBSTITUTE(Tabla1[[#This Row],[Uso]],"Residencial","")," ",""),"á","a"),"é","e"),"í","i"),"ó","o"),"ú","u"))&"_" -> _
G12: =IFERROR(_xlfn.XLOOKUP(Tabla1[[#This Row],[Tipología (T)]],INDIRECT(Tabla1[[#This Row],[slug]]&"a"),INDIRECT(Tabla1[[#This Row],[slug]]&"b"),""),"") ->  | H12: =IFERROR(_xlfn.XLOOKUP(Tabla1[[#This Row],[Variante (V)]],INDIRECT(Tabla1[[#This Row],[slug]]&"c"),INDIRECT(Tabla1[[#This Row],[slug]]&"d"),""),"") ->  | I12: =IFERROR(Tabla1[[#This Row],[Sup (m²)]]*Tabla1[[#This Row],[T]]*IF(Tabla1[[#This Row],[V]]="",1,Tabla1[[#This Row],[V]])*IF(Tabla1[[#This Row],[Parcial]]="",1,Tabla1[[#This Row],[Parcial]]),"") ->  | J12: =LOWER(SUBSTITUTE(SUBSTITUTE(SUBSTITUTE(SUBSTITUTE(SUBSTITUTE(SUBSTITUTE(SUBSTITUTE(Tabla1[[#This Row],[Uso]],"Residencial","")," ",""),"á","a"),"é","e"),"í","i"),"ó","o"),"ú","u"))&"_" -> _
G13: =IFERROR(_xlfn.XLOOKUP(Tabla1[[#This Row],[Tipología (T)]],INDIRECT(Tabla1[[#This Row],[slug]]&"a"),INDIRECT(Tabla1[[#This Row],[slug]]&"b"),""),"") ->  | H13: =IFERROR(_xlfn.XLOOKUP(Tabla1[[#This Row],[Variante (V)]],INDIRECT(Tabla1[[#This Row],[slug]]&"c"),INDIRECT(Tabla1[[#This Row],[slug]]&"d"),""),"") ->  | I13: =IFERROR(Tabla1[[#This Row],[Sup (m²)]]*Tabla1[[#This Row],[T]]*IF(Tabla1[[#This Row],[V]]="",1,Tabla1[[#This Row],[V]])*IF(Tabla1[[#This Row],[Parcial]]="",1,Tabla1[[#This Row],[Parcial]]),"") ->  | J13: =LOWER(SUBSTITUTE(SUBSTITUTE(SUBSTITUTE(SUBSTITUTE(SUBSTITUTE(SUBSTITUTE(SUBSTITUTE(Tabla1[[#This Row],[Uso]],"Residencial","")," ",""),"á","a"),"é","e"),"í","i"),"ó","o"),"ú","u"))&"_" -> _
G14: =IFERROR(_xlfn.XLOOKUP(Tabla1[[#This Row],[Tipología (T)]],INDIRECT(Tabla1[[#This Row],[slug]]&"a"),INDIRECT(Tabla1[[#This Row],[slug]]&"b"),""),"") ->  | H14: =IFERROR(_xlfn.XLOOKUP(Tabla1[[#This Row],[Variante (V)]],INDIRECT(Tabla1[[#This Row],[slug]]&"c"),INDIRECT(Tabla1[[#This Row],[slug]]&"d"),""),"") ->  | I14: =IFERROR(Tabla1[[#This Row],[Sup (m²)]]*Tabla1[[#This Row],[T]]*IF(Tabla1[[#This Row],[V]]="",1,Tabla1[[#This Row],[V]])*IF(Tabla1[[#This Row],[Parcial]]="",1,Tabla1[[#This Row],[Parcial]]),"") ->  | J14: =LOWER(SUBSTITUTE(SUBSTITUTE(SUBSTITUTE(SUBSTITUTE(SUBSTITUTE(SUBSTITUTE(SUBSTITUTE(Tabla1[[#This Row],[Uso]],"Residencial","")," ",""),"á","a"),"é","e"),"í","i"),"ó","o"),"ú","u"))&"_" -> _
G15: =IFERROR(_xlfn.XLOOKUP(Tabla1[[#This Row],[Tipología (T)]],INDIRECT(Tabla1[[#This Row],[slug]]&"a"),INDIRECT(Tabla1[[#This Row],[slug]]&"b"),""),"") ->  | H15: =IFERROR(_xlfn.XLOOKUP(Tabla1[[#This Row],[Variante (V)]],INDIRECT(Tabla1[[#This Row],[slug]]&"c"),INDIRECT(Tabla1[[#This Row],[slug]]&"d"),""),"") ->  | I15: =IFERROR(Tabla1[[#This Row],[Sup (m²)]]*Tabla1[[#This Row],[T]]*IF(Tabla1[[#This Row],[V]]="",1,Tabla1[[#This Row],[V]])*IF(Tabla1[[#This Row],[Parcial]]="",1,Tabla1[[#This Row],[Parcial]]),"") ->  | J15: =LOWER(SUBSTITUTE(SUBSTITUTE(SUBSTITUTE(SUBSTITUTE(SUBSTITUTE(SUBSTITUTE(SUBSTITUTE(Tabla1[[#This Row],[Uso]],"Residencial","")," ",""),"á","a"),"é","e"),"í","i"),"ó","o"),"ú","u"))&"_" -> _
G16: =IFERROR(_xlfn.XLOOKUP(Tabla1[[#This Row],[Tipología (T)]],INDIRECT(Tabla1[[#This Row],[slug]]&"a"),INDIRECT(Tabla1[[#This Row],[slug]]&"b"),""),"") ->  | H16: =IFERROR(_xlfn.XLOOKUP(Tabla1[[#This Row],[Variante (V)]],INDIRECT(Tabla1[[#This Row],[slug]]&"c"),INDIRECT(Tabla1[[#This Row],[slug]]&"d"),""),"") ->  | I16: =IFERROR(Tabla1[[#This Row],[Sup (m²)]]*Tabla1[[#This Row],[T]]*IF(Tabla1[[#This Row],[V]]="",1,Tabla1[[#This Row],[V]])*IF(Tabla1[[#This Row],[Parcial]]="",1,Tabla1[[#This Row],[Parcial]]),"") ->  | J16: =LOWER(SUBSTITUTE(SUBSTITUTE(SUBSTITUTE(SUBSTITUTE(SUBSTITUTE(SUBSTITUTE(SUBSTITUTE(Tabla1[[#This Row],[Uso]],"Residencial","")," ",""),"á","a"),"é","e"),"í","i"),"ó","o"),"ú","u"))&"_" -> _
B18: Fase/s a liquidar = | D18: Nº edificios idénticos que se repiten = | H18: Vref (total) = | I18: =SUM(Tabla1[Vref])+(D20/832.62) -> 0
C20: PEM (actuaciones no sujetas a critierios de superficie y tipología) : | H20: c (curvatura) | I20: 0.57
B21: =IF(C18="",1,_xlfn.XLOOKUP(C18,fases_a,fases_b)) -> 1 | H21: e (elevación) | I21: 3.87
H23: ="Precio de Visado = "&(IF(B21=1,"100% (fases completas) · ",TEXT(B21,"0,00%")&" (fase) · ")&IF(I18=0,"Vref",TEXT(I18,"#.###,00"))&" · [ "&TEXT(I21,"0,00")&" – "&TEXT(I20,"0,00")&" · log ( "&IF(I18=0,"Vref",TEXT(I18,"#.###,00"))&" ) ] · "&IF(AND(I18=0,E18=""),"K",IF(E18<10,1,TEXT(MAX(0.5,1-((E18-1)/200)),"0,##")))&" =") -> Precio de Visado = 100% (fases completas) · Vref · [ 3,87 – 0,57 · log ( Vref ) ] · K = | I23: =IF(I18=0,0,I18*(I21-I20*LOG(I18))*IF(E18<10,1,MAX(0.5, 1-((E18-1)/200)))*IF(C18="",1,_xlfn.XLOOKUP(C18,fases_a,fases_b))) -> 0

Sheet COEFICIENTES TIPOLOGICOS
B2: =791.31 -> 791.31 | E2: Coeficientes tipológicos (T) y variantes (V)
E4: Uso
E5: Residencial viviendas
E6: Residencial comunitario
E7: Aparcamientos
E8: Comercial
E9: Oficinas
E10: Turístico
E11: Sociosanitario
E12: Sociocultural
E13: Deportivo
E14: Industrial
E15: Otros usos
E16: Urbanización
E18: Residencial viviendas
D19: T | E19: Tipologías
B20: =TRUE() -> TRUE | E20: Vivienda unif. aislada | F20: 1.45
B21: =TRUE() -> TRUE | E21: Vivienda unif. pareada o en hilera | F21: 1.26
B22: =TRUE() -> TRUE | E22: Vivienda unif. entre medianeras | F22: 1.12
B23: =TRUE() -> TRUE | E23: Bloque de viviendas aislado | F23: 1.23
B24: =TRUE() -> TRUE | E24: Bloque de viviendas entre medianeras | F24: 1.12
D25: V | E25: Variantes
E26: Viviendas < 70 m² | F26: 0.9
E27: Viviendas ≥ 70 < 130 m² | F27: 1
E28: Viviendas ≥ 130 < 180 m² | F28: 1.1
E29: Viviendas ≥ 180 m² | F29: 1.2
E30: Soportales o terrazas cubiertas | F30: 0.45
E31: Trasteros / Lavaderos / Auxiliares | F31: 0.8
E33: Residencial comunitario
D34: T | E34: Tipologías
E35: Residencia de estudiantes | F35: 1.41
E36: Residencia de mayores | F36: 1.64
E37: Viviendas colaborativas (coliving / cohousing) | F37: 1.41
D38: V | E38: Variantes
E39: Superficie < 10.000 m² | F39: 1
E40: Superficie ≥ 10.000 m² | F40: 1.1
E41: Soportales o terrazas cubiertas | F41: 0.45
E42: Sótano de servicio o instalaciones | F42: 0.8
E44: Aparcamientos
D45: T | E45: Tipologías
B46: =TRUE() -> TRUE | E46: Aparcamientos en edificios | F46: 0.84
B47: =FALSE() -> FALSE | E47: Aparcamientos al aire libre descubiertos | F47: 0.23
B48: =FALSE() -> FALSE | E48: Aparcamientos al aire libre cubiertos | F48: 0.3
D49: V | E49: Variantes
E50: En plantas sobre rasante | F50: 1
E51: En plantas bajo rasante -1 | F51: 1.05
E52: En plantas bajo rasante ≥ -2 | F52: 1.1
E54: Comercial
D55: T | E55: Tipologías
B56: =TRUE() -> TRUE | E56: Local hostelería / Sala de fiesta | F56: 1.35
B57: =TRUE() -> TRUE | E57: Local comercial acondicionado en edificio | F57: 1.16
B58: =TRUE() -> TRUE | E58: Local comercial sin acondicionar en edificio | F58: 0.9
B59: =TRUE() -> TRUE | E59: Centro comercial con locales acondicionados | F59: 1.46
B60: =TRUE() -> TRUE | E60: Centro comercial con locales sin acondicionar | F60: 1.22
D61: V | E61: Variantes
E62: Superficie < 10.000 m² | F62: 1
E63: Superficie ≥ 10.000 m² | F63: 1.1
E64: Soportales o terrazas cubiertas | F64: 0.45
E65: Sótano de servicio o instalaciones | F65: 0.8
E67: Oficinas / administrativo
D68: T | E68: Tipologías
B69: =FALSE() -> FALSE | E69: Oficinas en edificios de viviendas | F69: 1.05
B70: =TRUE() -> TRUE | E70: Edificio de oficinas | F70: 1.45
D71: V | E71: Variantes
E72: Superficie < 10.000 m² | F72: 1
E73: Superficie ≥ 10.000 m² | F73: 1.1
E74: Soportales o terrazas cubiertas | F74: 0.45
E75: Sótano de servicio o instalaciones | F75: 0.8
E77: Turístico
D78: T | E78: Tipologías
B79: =TRUE() -> TRUE | E79: Hotel / Hotel urbano / Hotel rural | F79: 1.53
B80: =TRUE() -> TRUE | E80: Bloque de apartamentos | F80: 1.27
B81: =FALSE() -> FALSE | E81: Villa aislada | F81: 1.35
E82: Villa pareada o en hilera | F82: 1.29
E83: Vivienda vacacional | F83: 1.45
B84: =FALSE() -> FALSE | E84: Casa rural | F84: 1.35
D85: V | E85: Variantes
E86: 5 estrellas gran lujo | F86: 1.47
E87: 5 estrellas | F87: 1.31
E88: 4 estrellas | F88: 1.17
E89: 3 estrellas o categoría única | F89: 1
E90: Emblemático | F90: 1.25
E91: Soportales o terrazas cubiertas | F91: 0.45
E92: Sótano de servicio o instalaciones | F92: 0.8
E94: Sociosanitario
D95: T | E95: Tipologías
B96: =TRUE() -> TRUE | E96: Hospital / Clínica | F96: 1.97
B97: =TRUE() -> TRUE | E97: Centro de salud / Consultorio / Ambulatorio | F97: 1.64
B98: =TRUE() -> TRUE | E98: Centro asistencial / Centro socio-sanitario | F98: 1.64
D99: V | E99: Variantes
E100: Superficie < 10.000 m² | F100: 1
E101: Superficie ≥ 10.000 m² | F101: 1.1
E102: Soportales o terrazas cubiertas | F102: 0.45
E103: Sótano de servicio o instalaciones | F103: 0.8
E105: Sociocultural
D106: T | E106: Tipologías
B107: =TRUE() -> TRUE | E107: Local social o cultural en edificio | F107: 1.15
B108: =TRUE() -> TRUE | E108: Centro social o cultural | F108: 1.4
B109: =TRUE() -> TRUE | E109: Centro educativo | F109: 1.3
B110: =TRUE() -> TRUE | E110: Museo / Auditorio / Sala de congresos / Teatro / Cine | F110: 2
D111: V | E111: Variantes
E112: Superficie < 10.000 m² | F112: 1
E113: Superficie ≥ 10.000 m² | F113: 1.1
E114: Soportales o terrazas cubiertas | F114: 0.45
E115: Sótano de servicio o instalaciones | F115: 0.8
E117: Deportivo
D118: T | E118: Tipologías
B119: =FALSE() -> FALSE | E119: Cancha, campo de juego, o pista no cubierta | F119: 0.22
B120: =FALSE() -> FALSE | E120: Cancha, campo de juego, o pista cubierta | F120: 1.1
B121: =FALSE() -> FALSE | E121: Piscina no cubierta | F121: 1
B122: =TRUE() -> TRUE | E122: Piscina cubierta | F122: 1.55
E123: Pabellón polideportivo | F123: 1.4
B124: =TRUE() -> TRUE | E124: Estadio (campo de juego aparte) | F124: 1.65
D125: V | E125: Variantes
E126: Superficie < 10.000 m² | F126: 1
E127: Superficie ≥ 10.000 m² | F127: 1.1
E128: Soportales o terrazas cubiertas | F128: 0.45
E129: Sótano de servicio o instalaciones | F129: 0.8
E131: Industrial / agrícola
D132: T | E132: Tipologías
B133: =TRUE() -> TRUE | E133: Cobertizo sin cerrar | F133: 0.23
B134: =TRUE() -> TRUE | E134: Almacén / Agrícola | F134: 0.46
B135: =TRUE() -> TRUE | E135: Nave de producción | F135: 0.52
D136: V | E136: Variantes
E137: Luces < 10 metros | F137: 1
E138: Luces ≥ 10 metros | F138: 1.1
E140: Otros usos
D141: T | E141: Tipologías
B142: =TRUE() -> TRUE | E142: Templo | F142: 1.55
B143: =TRUE() -> TRUE | E143: Tanatorio | F143: 1.6
B144: =TRUE() -> TRUE | E144: Estación de transporte de pasajeros | F144: 1.73
B145: =TRUE() -> TRUE | E145: Estación de servicio cubierta / Marquesina | F145: 0.43
B146: =FALSE() -> FALSE | E146: Talleres | F146: 0.84
E147: Parques de bomberos | F147: 1.34
E148: Centro penitenciario | F148: 1.65
B149: =TRUE() -> TRUE | E149: Nichos funerarios (sup. por piso de enterramiento) | F149: 0.26
D150: V | E150: Variantes
E151: Superficie < 10.000 m² | F151: 1
E152: Superficie ≥ 10.000 m² | F152: 1.1
E153: Soportales o terrazas cubiertas | F153: 0.45
E154: Sótano de servicio o instalaciones | F154: 0.8
E156: Urbanización
D157: T | E157: Tipologías
B158: =FALSE() -> FALSE | E158: Plazas, parques y jardines | F158: 0.28
E159: Jardines en establecimientos turísticos | F159: 0.32
B160: =FALSE() -> FALSE | E160: Urbanización de calles | F160: 0.23
B161: =FALSE() -> FALSE | E161: Acondicionamiento de terreno | F161: 0.07
D162: V | E162: Variantes
E163: Pendiente < 20% | F163: 1
E164: Pendiente ≥ 20% < 40% | F164: 1.1
E165: Pendiente ≥ 40% < 60% | F165: 1.2
E166: Pendiente ≥ 60% | F166: 1.3
E169: Liquidación por fases
E171: Estudio previo | F171: 0.0625
E172: Anteproyecto | F172: 0.1875
E173: Anteproyecto (solo fase sin previa) | F173: 0.125
E174: Proy. Básico | F174: 0.375
E175: Proy. básico (solo fase sin previas) | F175: 0.1875
E176: Proy. de ejecución | F176: 1
E177: Proy. de ejecución (solo fase sin previas) | F177: 0.625
B235: No hay variantes para esta tipología
E236: Logaritmo Base | F236: =2/5 -> 0.4
E237: Logaritmo Elevación | F237: 25.8
E238: Divisor | F238: 44
A241: Comprobación (log) | E241: PEM | F241: CPEM
A243: =(LOG(E243,$F$236)+$F$237)/$F$238 -> 0.3399995577 | B243: =E243*F243/100 -> 70.0094 | E243: =ROUND(POWER($F$236,((F243*$F$238)-$F$237)),0) -> 20591 | F243: 0.34
A244: =(LOG(E244,$F$236)+$F$237)/$F$238 -> 0.3350003181 | B244: 84.38315 | E244: =ROUND(POWER($F$236,((F244*$F$238)-$F$237)),0) -> 25189 | F244: =F243-0.005 -> 0.335
A245: 0.3300000643 | B245: 101.6895 | E245: 30815 | F245: =F244-0.005 -> 0.33
A246: 0.325000189 | B246: 122.51525 | E246: 37697 | F246: 0.325
A247: 0.3199997632 | B247: 147.5744 | E247: 46117 | F247: 0.32
A248: 0.3150000807 | B248: 177.7104 | E248: 56416 | F248: 0.315
A249: 0.3100000411 | B249: 213.9496 | E249: 69016 | F249: 0.31
A250: 0.3050000296 | B250: 257.5115 | E250: 84430 | F250: 0.305
A251: 0.2999999112 | B251: 309.861 | E251: =ROUND(POWER($F$236,((F251*$F$238)-$F$237)),0) -> 103287 | F251: 0.3
A252: 0.2949999131 | B252: 372.74725 | E252: =ROUND(POWER($F$236,((F252*$F$238)-$F$237)),0) -> 126355 | F252: 0.295
A253: 0.2900000724 | B253: 448.2646 | E253: 154574 | F253: 0.29
A254: 0.2849999929 | B254: 538.92645 | E254: 189097 | F254: 0.285
A255: 0.2799999634 | B255: 647.724 | E255: 231330 | F255: 0.28
A256: 0.2749999632 | B256: 778.23625 | E256: 282995 | F256: 0.275
A257: 0.2700000209 | B257: 934.7346 | E257: 346198 | F257: 0.27
A258: 0.2649999914 | B258: 1122.3227 | E258: 423518 | F258: 0.265
A259: 0.2599999944 | B259: 1347.0756 | E259: 518106 | F259: 0.26
A260: 0.2550000041 | B260: 1616.23845 | E260: 633819 | F260: 0.255
A261: 0.2499999871 | B261: 1938.44 | E261: 775376 | F261: 0.25
A262: 0.2450000043 | B262: 2323.94015 | E262: 948547 | F262: 0.245
A263: 0.2399999933 | B263: 2784.948 | E263: 1160395 | F263: 0.24
A264: 0.2350000003 | B264: 3335.9566 | E264: 1419556 | F264: 0.235
A265: 0.2300000023 | B265: 3994.1754 | E265: 1736598 | F265: 0.23
A266: 0.2250000019 | B266: 4780.008 | E266: 2124448 | F266: 0.225
A267: 0.2200000016 | B267: 5717.624 | E267: 2598920 | F267: 0.22
A268: 0.215000002 | B268: 6835.624 | E268: 3179360 | F268: 0.215
A269: 0.2100000015 | B269: 8167.8135 | E269: 3889435 | F269: 0.21
A270: 0.2049999979 | B270: 9754.1009 | E270: 4758098 | F270: 0.205
A271: 0.2000000004 | B271: 11641.532 | E271: 5820766 | F271: 0.2
A272: 0.1949999995 | B272: 13885.5015 | E272: 7120770 | F272: 0.195
A273: 0.1900000002 | B273: 16551.1185 | E273: 8711115 | F273: 0.19
A274: 0.1850000008 | B274: 19714.7951 | E274: 10656646 | F274: 0.185
A275: 0.1800000009 | B275: 23466.042 | E275: 13036690 | F275: 0.18
A276: 0.1750000003 | B276: 27909.50925 | E276: 15948291 | F276: 0.175
A277: 0.1699999997 | B277: 33167.2822 | E277: 19510166 | F277: 0.17
... 20 more rows
